bitfinex-derivatives/quotes_ETHF0:USTF0_20240830
["timestamp","ask_amount","ask_price","bid_price","bid_amount"]
[1725041052667,4.42848913,2469.9,2469.8,4.6658546]
[1725041053068,0.20221019,2469.9,2469.8,4.6658546]
[1725041053270,0.3625,2470.2,2470.0,0.40486]
[1725041053574,4.45767723,2470.1,2470.0,0.40486]
[1725041055466,4.45767723,2470.1,2469.8,4.2609546]
[1725041055467,4.45767723,2470.1,2469.9,0.40488]
[1725041055673,4.45767723,2470.1,2469.9,0.40489]
[1725041056063,4.86253723,2470.1,2469.9,0.40489]
[1725041056371,0.40488,2470.0,2469.8,4.6658546]
[1725041056766,4.31292938,2469.9,2469.8,4.6658646]
[1725041057171,3.5923,2470.3,2470.2,0.40484]
[1725041057471,8.0084805,2470.3,2470.2,0.40484]
[1725041059777,4.8006805,2470.3,2470.2,0.40484]
[1725041060276,1.37572,2470.7,2470.2,0.40484]
[1725041060277,0.3638,2470.7,2470.6,0.40478]
[1725041060783,4.64883901,2470.7,2470.6,0.40478]
[1725041060964,0.41078607,2471.0,2470.8,0.40474]
[1725041061466,4.64883901,2470.9,2470.8,0.40474]
[1725041062461,5.05356901,2470.9,2470.7,0.40475]
[1725041062661,4.64883901,2470.9,2470.7,0.40475]
[1725041063372,0.00607607,2471.0,2470.9,0.40473]
[1725041063875,0.00607607,2471.0,2470.9,4.45193]
[1725041064686,0.00607607,2471.0,2470.9,4.74133]
[1725041065567,0.00607607,2471.0,2470.9,0.69413]
[1725041065879,8.93179911,2471.0,2470.9,0.2894]
[1725041066468,9.30819911,2471.0,2470.9,0.2894]
[1725041067472,5.26099911,2471.0,2470.9,0.2894]
[1725041067868,5.26099911,2471.0,2470.9,0.69413]
[1725041068067,9.30819911,2471.0,2470.9,0.2894]
[1725041068271,10.31997911,2471.0,2470.9,0.2894]
[1725041068667,10.31997911,2471.0,2470.1,4.21994]
[1725041068668,0.40479,2470.6,2470.1,4.21994]
[1725041068872,0.7453,2470.5,2470.4,0.40481]
[1725041069072,5.33808768,2470.5,2470.4,0.40481]
[1725041069274,0.7453,2470.5,2470.4,0.40481]
[1725041069687,5.27357492,2470.5,2470.4,0.40481]
[1725041071276,4.89267492,2470.5,2470.4,0.40481]
[1725041071471,4.52827492,2470.5,2470.4,1.41684]
[1725041072679,0.7713,2470.8,2470.7,0.40476]
[1725041072984,5.85542149,2470.8,2470.7,0.40476]
[1725041073189,5.45068149,2470.8,2470.7,0.40476]
[1725041073382,5.85542149,2470.8,2470.7,0.40476]
[1725041073682,0.40477,2470.7,2470.6,0.40476]
[1725041074074,4.68285578,2470.7,2470.6,0.40476]
[1725041074682,4.27808578,2470.7,2470.6,0.40476]
[1725041075183,4.27808578,2470.7,2470.3,3.2078]
[1725041075377,4.68285578,2470.7,2470.6,0.40478]
[1725041076177,4.27808578,2470.7,2470.6,0.40478]
[1725041076479,4.68284578,2470.7,2470.6,0.40478]
[1725041077083,4.27808578,2470.7,2470.6,0.40478]
[1725041078075,4.27808578,2470.7,2470.6,1.41673]
[1725041078475,4.27808578,2470.7,2470.6,2.42868]
[1725041078684,4.27808578,2470.7,2470.6,1.41673]
[1725041080182,3.67073783,2470.7,2470.6,2.42868]
[1725041084686,3.67073783,2470.7,2470.4,1.0531546]
[1725041084687,0.40479,2470.5,2470.4,1.0531546]
[1725041084988,0.40479,2470.5,2470.4,0.4048]
[1725041084989,4.91776617,2470.5,2470.4,0.4048]
[1725041085290,4.51297617,2470.5,2470.4,1.00001588]
[1725041086482,3.61254,2470.9,2470.8,0.40474]
[1725041086792,7.7530396,2470.9,2470.8,0.40474]
[1725041088683,7.3482996,2470.9,2470.8,0.40474]
[1725041090393,0.78779607,2471.0,2470.9,1.41655]
[1725041090394,0.00607607,2471.0,2470.9,1.41655]
[1725041090999,0.00607607,2471.0,2470.9,0.40473]
[1725041091496,0.00607607,2471.0,2470.9,1.41655]
[1725041092287,0.00607607,2471.0,2470.9,4.62435]
[1725041094588,0.00607607,2471.0,2470.9,8.67155]
[1725041095200,0.00607607,2471.0,2470.9,3.61253]
[1725041095499,4.43466875,2471.0,2470.9,3.61253]
[1725041096201,4.43466875,2471.0,2470.9,4.62435]
[1725041096501,0.00607607,2471.0,2470.9,4.62435]
[1725041096992,0.00607607,2471.0,2470.9,9.68337]
[1725041097197,0.00607607,2471.0,2470.9,10.84277]
[1725041098897,0.3587,2471.3,2471.2,1.41638]
[1725041099105,0.60326016,2471.5,2471.4,0.40464]
[1725041099301,0.19862016,2471.5,2471.4,0.40464]
[1725041099599,7.89026423,2471.5,2471.4,0.40464]
[1725041100096,7.89026423,2471.5,2471.4,1.41626]
[1725041100299,4.68246423,2471.5,2471.4,0.40464]
[1725041100797,4.37820574,2471.6,2471.5,0.40463]
[1725041100995,0.40462,2471.6,2471.5,0.40463]
[1725041101192,4.78282574,2471.6,2471.5,0.40463]
[1725041101394,4.78283574,2471.6,2471.5,0.40463]
[1725041101600,4.37820574,2471.6,2471.5,0.40463]
[1725041103103,4.33305346,2472.2,2471.5,12.2321096]
[1725041103315,1.01085,2473.3,2472.1,3.5]
[1725041103503,1.01085,2473.3,2472.8,0.40441]
[1725041103504,0.3821,2472.9,2472.8,0.40441]
[1725041104011,9.16463891,2472.9,2472.7,0.40442]
[1725041104304,5.12062891,2472.9,2472.7,0.40442]
[1725041104503,4.044,2472.8,2472.6,0.00607607]
[1725041104707,4.044,2472.8,2471.6,1.63499442]
[1725041104708,1.40609,2472.7,2472.0,3.2078]
[1725041104918,0.40452,2472.2,2472.0,3.61233]
[1725041105212,4.51118,2472.5,2472.0,3.61233]
[1725041105213,0.384,2472.1,2472.0,0.40453]
[1725041105408,4.83168983,2472.1,2472.0,0.40453]
[1725041105599,0.384,2472.1,2472.0,0.40453]
[1725041105800,0.40448,2472.4,2472.2,0.4045]
[1725041106017,0.3926,2472.3,2472.2,0.4045]
[1725041106201,4.64188621,2472.4,2472.3,0.4045]
[1725041106395,0.59740972,2472.7,2472.3,3.2078]
[1725041106597,4.24007633,2472.6,2472.5,3.90446]
[1725041106806,0.3926,2472.8,2472.7,0.40443]
[1725041107408,4.93865082,2472.8,2472.7,0.40443]
[1725041107610,8.14645082,2472.8,2472.7,0.40443]
[1725041108308,8.14645082,2472.8,2472.4,0.3642]
[1725041108309,12.59488082,2472.8,2472.6,0.40444]
[1725041108607,12.59488082,2472.8,2472.4,0.40447]
[1725041108608,0.40445,2472.6,2472.4,0.40447]
[1725041108809,0.60846754,2472.7,2472.5,0.40446]
[1725041109207,4.35130303,2472.6,2472.5,0.40446]
[1725041109411,4.35130303,2472.6,2472.4,0.40447]
[1725041109614,3.2078,2472.5,2472.3,0.40449]
[1725041109810,3.2078,2472.5,2472.1,3.5]
[1725041109811,0.3937,2472.4,2471.8,0.00607607]
[1725041110011,3.2078,2472.2,2471.8,0.00607607]
[1725041110214,0.40455,2472.0,2471.8,0.41064607]
[1725041110413,3.2078,2472.2,2471.8,0.00607607]
[1725041110414,0.3801,2471.9,2471.8,0.00607607]
[1725041110606,4.84559652,2471.9,2471.8,0.00607607]
[1725041110805,0.78466,2471.9,2471.8,0.00607607]
[1725041111006,8.03806,2471.9,2471.8,0.00607607]
[1725041111216,4.75344282,2471.9,2471.8,0.00607607]
[1725041111406,4.75344282,2471.9,2471.8,0.41065607]
[1725041111715,4.75344282,2471.9,2471.8,0.00607607]
[1725041111903,13.42281282,2471.9,2471.8,0.00607607]
[1725041112118,0.40462,2471.6,2471.1,3.2078]
[1725041112325,0.40462,2471.6,2471.4,0.40463]
[1725041112506,4.68298665,2471.5,2471.3,0.40465]
[1725041112712,0.78474,2471.4,2471.2,0.40467]
[1725041112907,0.3801,2471.4,2471.2,0.40467]
[1725041113113,0.78475,2471.4,2471.1,3.61855607]
[1725041113311,0.40468,2471.2,2471.1,3.21387607]
[1725041113608,4.9271916,2471.2,2471.1,3.21387607]
[1725041113813,5.2882916,2471.2,2471.1,3.21387607]
[1725041114410,5.2882916,2471.2,2471.1,0.00607607]
[1725041115109,9.3346916,2471.2,2471.1,0.00607607]
[1725041115313,15.3346916,2471.2,2471.1,0.00607607]
[1725041116117,8.72347847,2471.2,2471.1,0.41076607]
[1725041116318,4.67707847,2471.2,2471.1,0.41076607]
[1725041116625,4.87719911,2471.2,2471.1,0.41076607]
[1725041116817,4.87719911,2471.2,2471.1,0.00607607]
[1725041117323,5.28187911,2471.2,2471.1,0.00607607]
[1725041117620,4.87719911,2471.2,2471.1,0.00607607]
[1725041118013,5.28187911,2471.2,2471.1,0.00607607]
[1725041118219,4.87719911,2471.2,2471.1,0.00607607]
[1725041118611,9.32827911,2471.2,2471.1,0.00607607]
[1725041119218,10.33997911,2471.2,2471.1,0.00607607]
[1725041119415,0.40474,2470.9,2470.4,0.3863]
[1725041119618,0.79184,2470.8,2470.6,0.40477]
[1725041119811,5.39807007,2470.8,2470.6,0.40477]
[1725041120123,0.79184,2470.8,2470.6,0.40477]
[1725041120417,4.60623007,2470.7,2470.5,0.00607607]
[1725041120618,0.40478,2470.6,2470.5,0.00607607]
[1725041120919,4.95700289,2470.6,2470.5,0.41086607]
[1725041121127,5.36178289,2470.6,2470.5,0.00607607]
[1725041121514,4.95700289,2470.6,2470.5,0.41086607]
[1725041121811,4.59370289,2470.6,2470.5,0.41086607]
[1725041122017,4.59370289,2470.6,2470.5,1.42285607]
[1725041122921,4.59370289,2470.6,2470.5,0.41086607]
[1725041124222,4.59370289,2470.6,2470.5,5.47085607]
[1725041124425,4.53379375,2471.2,2471.1,0.40469]
[1725041124426,4.32712064,2471.2,2471.1,0.40469]
[1725041124621,0.20012064,2471.2,2471.1,0.40469]
[1725041124827,3.52638254,2471.2,2471.1,0.40469]
[1725041125011,3.93106254,2471.2,2471.1,0.40469]
[1725041125825,3.52638254,2471.2,2471.1,0.40469]
[1725041127319,3.93106254,2471.2,2471.1,0.40469]
[1725041127526,3.93106254,2471.2,2471.0,0.4047]
[1725041127714,3.93107254,2471.2,2471.0,0.4047]
[1725041127916,0.40469,2471.1,2471.0,0.4047]
[1725041128219,4.70053078,2471.1,2471.0,0.4047]
[1725041128627,4.29584078,2471.1,2471.0,0.4047]
[1725041130118,0.7656,2471.4,2471.3,0.40466]
[1725041130327,3.21387607,2471.5,2471.4,0.40464]
[1725041130726,7.54054965,2471.5,2471.4,0.40464]
[1725041132316,7.94517965,2471.5,2471.4,0.40464]
[1725041132526,11.58694965,2471.5,2471.1,0.3797]
[1725041132723,3.2078,2471.2,2470.7,4.158]
[1725041132920,0.95988903,2471.1,2471.0,0.4047]
[1725041133226,5.38490519,2471.1,2471.0,0.4047]
[1725041133428,9.83679519,2471.1,2471.0,0.4047]
[1725041133620,9.83681519,2471.1,2470.9,0.40472]
[1725041133821,4.0472,2471.0,2470.8,0.40474]
[1725041134023,4.0472,2471.0,2470.5,0.00607607]
[1725041134024,5.38490519,2471.1,2470.5,1.01804607]
[1725041134225,0.3676,2471.1,2471.0,0.40471]
[1725041134629,4.57073698,2471.1,2471.0,1.41649]
[1725041134837,4.57073698,2471.1,2471.0,0.40471]
[1725041135527,5.41548798,2471.2,2471.1,0.40469]
[1725041135719,0.4047,2471.1,2470.6,1.01195]
[1725041135915,0.4047,2471.1,2470.9,0.40471]
[1725041136133,4.54329598,2471.0,2470.9,0.40471]
[1725041136620,4.94800598,2471.0,2470.8,0.40473]
[1725041136821,0.40473,2470.9,2470.8,0.40473]
[1725041137321,0.40473,2470.9,2470.5,0.00607607]
[1725041137322,4.58018965,2470.9,2470.5,0.00607607]
[1725041137520,4.98492965,2470.9,2470.7,0.40475]
[1725041137721,4.58018965,2470.9,2470.7,0.40475]
[1725041138219,4.98492965,2470.9,2470.7,0.40475]
[1725041138422,4.58018965,2470.9,2470.7,0.40475]
[1725041138837,0.40475,2470.8,2470.6,0.40476]
[1725041139131,4.41954577,2470.7,2470.6,0.40476]
[1725041140530,4.82430577,2470.7,2470.5,0.41085607]
[1725041140726,4.41954577,2470.7,2470.6,0.40478]
[1725041140926,4.21533743,2470.8,2470.6,0.40478]
[1725041141127,0.40476,2470.7,2470.6,0.40478]
[1725041141425,0.40478,2470.6,2470.5,0.00607607]
[1725041141733,4.64822035,2470.6,2470.5,0.00607607]
[1725041142042,8.69622035,2470.6,2470.5,0.00607607]
[1725041142232,0.40483,2470.3,2470.1,0.40485]
[1725041142434,0.40482,2470.4,2470.2,0.40484]
[1725041142737,4.24344035,2470.2,2470.1,2.42916]
[1725041143029,4.4965,2470.7,2470.6,0.40478]
[1725041143030,4.127,2470.7,2470.6,0.40478]
[1725041143221,4.127,2470.7,2470.6,1.41673]
[1725041143422,4.127,2470.7,2470.6,5.46393]
[1725041143622,0.77419,2471.2,2471.1,0.40469]
[1725041143836,0.3695,2471.2,2471.1,0.40469]
[1725041144334,0.77418,2471.2,2471.1,0.40469]
[1725041144635,0.77418,2471.2,2471.0,0.4047]
[1725041144835,0.77418,2471.2,2471.1,0.40469]
[1725041145729,5.42277666,2471.2,2471.1,0.40469]
[1725041146132,5.01809666,2471.2,2471.1,0.40469]
[1725041146335,4.64859666,2471.2,2471.1,0.40469]
[1725041149532,4.64859666,2471.2,2471.1,1.41643]
[1725041149732,0.00607607,2471.5,2471.4,0.40464]
[1725041149929,0.00607607,2471.5,2471.4,5.46266]
[1725041150133,0.00607607,2471.5,2471.4,9.97428]
[1725041150926,0.7327,2472.2,2472.1,0.40453]
[1725041151428,0.60846754,2472.7,2472.2,1.01129]
[1725041151742,3.41182754,2472.7,2472.6,0.40445]
[1725041151932,3.61325988,2472.7,2472.5,0.40445]
[1725041152130,4.38029866,2472.6,2472.5,0.40445]
[1725041152337,0.79505,2472.6,2472.4,0.41054607]
[1725041152541,0.79505,2472.6,2472.5,0.40446]
[1725041152731,0.79505,2472.6,2472.4,0.00607607]
[1725041152732,4.78475866,2472.5,2472.4,0.00607607]
[1725041152929,9.02469055,2472.6,2472.4,0.00607607]
[1725041153143,0.3906,2472.6,2472.5,0.40446]
[1725041154036,4.93728189,2472.6,2472.5,0.40446]
[1725041154226,4.54668189,2472.6,2472.5,0.40446]
[1725041154543,4.54668189,2472.6,2472.5,5.46043]
[1725041154727,0.00607607,2472.9,2472.8,0.40442]
[1725041155034,0.00607607,2472.9,2472.8,1.41547]
[1725041155235,0.00607607,2472.9,2472.8,10.44842]
[1725041155432,0.00607607,2472.9,2472.8,4.44842]
[1725041155733,0.00607607,2472.9,2472.8,0.40442]
[1725041157740,0.00607607,2472.9,2472.6,0.40444]
[1725041158047,0.40446,2472.6,2472.4,0.00607607]
[1725041158241,0.40446,2472.6,2472.4,0.41055607]
[1725041158539,0.20215082,2472.7,2472.4,0.00607607]
[1725041158540,5.07654813,2472.5,2472.4,0.00607607]
[1725041158934,0.40446,2472.5,2472.4,0.00607607]
[1725041159134,4.62335336,2472.5,2472.4,0.00607607]
[1725041160440,10.07362336,2472.5,2472.4,0.00607607]
[1725041161031,8.66815336,2472.5,2472.4,0.00607607]
[1725041161838,4.62335336,2472.5,2472.4,0.00607607]
[1725041162338,4.21889336,2472.5,2472.4,0.41055607]
[1725041162940,4.21889336,2472.5,2472.4,4.45535607]
[1725041163141,0.3897,2472.8,2472.7,0.40443]
[1725041163335,0.3897,2472.8,2472.6,0.40444]
[1725041163550,4.46553817,2472.7,2472.6,0.40444]
[1725041163751,4.85523817,2472.8,2472.7,0.40443]
[1725041164045,0.3897,2472.8,2472.7,0.40443]
[1725041164253,4.98057708,2472.8,2472.7,0.40443]
[1725041164548,4.59087708,2472.8,2472.7,0.40443]
[1725041164748,0.00607607,2472.9,2472.8,0.40442]
[1725041165142,0.00607607,2472.9,2472.8,4.44842]
[1725041165649,0.00607607,2472.9,2472.8,5.45947]
[1725041166051,0.00607607,2472.9,2472.8,4.44842]
[1725041166245,0.00607607,2472.9,2472.8,5.45947]
[1725041166448,0.00607607,2472.9,2472.8,4.44842]
[1725041166845,0.00607607,2472.9,2472.8,5.45947]
[1725041167046,0.00607607,2472.9,2472.8,4.44842]
[1725041167640,0.00607607,2472.9,2472.8,0.40442]
[1725041167844,4.89213167,2472.9,2472.8,0.40442]
[1725041168051,4.48773167,2472.9,2472.8,0.40442]
[1725041168244,4.89213167,2472.9,2472.7,3.2078]
[1725041168446,4.48773167,2472.9,2472.8,0.40442]
[1725041168847,0.00607607,2472.9,2472.8,0.40442]
[1725041169845,0.00607607,2472.9,2472.7,3.61222]
[1725041170045,0.40442,2472.8,2472.7,3.2078]
[1725041170250,0.3647,2472.8,2472.7,3.61223]
[1725041170551,4.78903644,2472.8,2472.7,3.61223]
[1725041170750,4.42433644,2472.8,2472.7,3.61223]
[1725041170954,0.00607607,2472.9,2472.8,0.40442]
[1725041171156,0.00607607,2472.9,2472.8,6.47052]
[1725041171459,0.00607607,2472.9,2472.8,6.85742]
[1725041172147,0.00607607,2472.9,2472.8,1.80237]
[1725041172357,0.00607607,2472.9,2472.8,5.84637]
[1725041173556,0.00607607,2472.9,2472.8,4.83532]
[1725041173753,0.00607607,2472.9,2472.8,0.40442]
[1725041174064,0.00607607,2472.9,2472.8,1.41547]
[1725041174467,0.00607607,2472.9,2472.8,8.66727]
[1725041177359,0.00607607,2472.9,2472.8,4.62327]
[1725041177557,0.00607607,2472.9,2472.8,8.66727]
[1725041177951,0.00607607,2472.9,2472.8,7.65622]
[1725041178647,0.00607607,2472.9,2472.8,3.61222]
[1725041178852,0.40443,2472.7,2472.6,0.40444]
[1725041179461,0.40446,2472.6,2472.5,0.40446]
[1725041179856,0.40446,2472.6,2472.5,0.40445]
[1725041179857,0.40445,2472.6,2472.5,0.40445]
[1725041180063,4.96974786,2472.7,2472.4,7.37187607]
[1725041180264,0.40446,2472.5,2472.4,4.16407607]
[1725041180461,4.91563,2472.5,2472.4,0.00607607]
[1725041180659,13.34259257,2472.5,2472.4,0.00607607]
[1725041182059,17.92696257,2472.5,2471.6,7.7251]
[1725041182253,0.4046,2471.7,2471.6,3.2078]
[1725041182756,0.40462,2471.6,2471.4,0.40463]
[1725041182955,0.40462,2471.6,2471.5,0.40463]
[1725041183263,4.89076438,2471.6,2471.5,0.40463]
[1725041183456,4.48614438,2471.6,2471.5,0.40463]
[1725041184465,0.40464,2471.5,2471.3,0.40465]
[1725041184956,4.45461168,2471.4,2471.3,0.40465]
[1725041186461,4.85925168,2471.4,2471.3,0.40465]
[1725041186663,4.45461168,2471.4,2471.3,0.40465]
[1725041186963,4.45461168,2471.4,2470.8,4.158]
[1725041186964,0.40472,2471.0,2470.8,4.158]
[1725041187166,3.2078,2471.1,2470.8,0.40473]
[1725041187459,3.2078,2471.1,2470.3,10.20357]
[1725041187460,9.02348939,2470.9,2470.3,4.158]
[1725041187651,4.21971,2470.7,2470.2,0.40483]
[1725041187854,3.61262,2470.4,2470.1,0.40484]
[1725041188054,0.40482,2470.4,2470.1,0.40485]
[1725041188258,4.43043381,2470.3,2470.2,0.40484]
[1725041188567,4.43043381,2470.4,2470.3,0.40482]
[1725041188861,0.00607607,2470.5,2470.3,0.40482]
[1725041189251,4.63627237,2470.4,2470.3,0.40482]
[1725041190664,4.63627237,2470.4,2470.2,0.40483]
[1725041191253,4.63627237,2470.4,2469.8,3.5813]
[1725041191461,5.04109237,2470.4,2470.1,0.40486]
[1725041191659,4.63627237,2470.4,2470.2,0.40484]
[1725041192168,4.63627237,2470.4,2470.0,0.40486]
[1725041192468,0.79033,2470.3,2470.0,0.40486]
[1725041192868,5.07885918,2470.2,2469.9,0.40488]
[1725041193066,5.07885918,2470.2,2469.8,3.2078]
[1725041193067,0.40487,2470.1,2469.8,3.2078]
[1725041193372,0.40487,2470.1,2469.6,0.40493]
[1725041193373,0.40489,2469.9,2469.6,0.40493]
[1725041193666,4.56864851,2469.8,2469.6,0.40493]
[1725041194077,4.56864851,2469.8,2469.7,0.40492]
[1725041194566,0.40488,2470.0,2469.6,0.40493]
[1725041194567,4.86102316,2469.9,2469.6,0.40493]
[1725041194773,4.86102316,2469.9,2469.5,0.40494]
[1725041194774,0.40491,2469.8,2469.5,0.40494]
[1725041194958,0.4049,2469.9,2469.6,0.40494]
[1725041195160,0.4049,2469.9,2469.3,3.5713]
[1725041195161,4.63875582,2469.7,2469.5,0.40494]
[1725041195371,5.04366582,2469.8,2469.5,0.40494]
[1725041195575,9.22610633,2470.0,2469.7,0.40491]
[1725041195868,3.76978916,2470.1,2469.6,0.40493]
[1725041195869,0.4049,2469.9,2469.6,0.40493]
[1725041196058,4.98884526,2469.9,2469.6,0.40493]
[1725041196260,4.58394526,2469.9,2469.7,0.40492]
[1725041196567,0.40491,2469.8,2469.3,3.5713]
[1725041196769,4.98885526,2469.8,2469.5,0.40495]
[1725041196963,0.79013,2469.7,2469.4,0.40496]
[1725041197162,0.40494,2469.6,2469.3,3.61278]
[1725041197465,0.40494,2469.6,2469.4,0.40497]
[1725041197466,4.38176524,2469.5,2469.4,0.40497]
[1725041198772,4.38176524,2469.5,2469.4,1.41741]
[1725041199077,4.38176524,2469.5,2469.4,0.40497]
[1725041200965,3.53720917,2469.5,2469.4,6.47945]
[1725041201174,4.4973,2470.0,2469.9,0.40489]
[1725041201560,8.96366939,2470.0,2469.9,0.40489]
[1725041201765,0.4049,2469.9,2469.7,0.40491]
[1725041201966,0.4049,2469.9,2469.5,3.2078]
[1725041202278,4.36228751,2469.8,2469.7,1.41723]
[1725041202573,4.4973,2470.0,2469.9,0.40489]
[1725041202773,4.127,2470.0,2469.9,5.46592]
[1725041203161,3.51947255,2470.0,2469.9,4.45369]
[1725041203362,0.3785,2470.2,2470.1,0.40486]
[1725041203771,0.00607607,2470.5,2470.4,0.40481]
[1725041204072,4.46799616,2470.5,2470.4,0.40481]
[1725041204267,4.21957,2471.1,2470.4,0.40481]
[1725041204268,3.2078,2471.7,2470.4,11.0648]
[1725041204470,3.51947255,2472.7,2471.6,0.40461]
[1725041204471,0.20068623,2471.8,2471.6,0.40461]
[1725041204662,0.3571,2471.9,2471.5,0.40462]
[1725041204663,4.46192009,2471.7,2471.5,0.40462]
[1725041204866,0.19748595,2471.6,2471.1,7.8678]
[1725041205067,3.5958,2471.7,2470.9,3.2078]
[1725041205068,0.40464,2471.5,2470.9,3.2078]
[1725041205369,0.40464,2471.5,2470.8,4.66]
[1725041205370,4.25889157,2471.4,2471.3,0.40466]
[1725041205772,0.00607607,2471.4,2471.3,4.45106]
[1725041206476,0.00607607,2471.4,2471.3,0.40466]
[1725041207573,4.41064331,2471.4,2471.3,0.40466]
[1725041207875,4.41064331,2471.4,2471.3,3.61246]
[1725041208378,4.41064331,2471.4,2471.3,3.2078]
[1725041208565,0.40467,2471.3,2471.0,3.61857607]
[1725041208766,4.41064331,2471.4,2471.2,0.40467]
[1725041209073,0.00607607,2471.4,2471.2,0.40467]
[1725041209375,4.4989765,2471.3,2471.1,0.40469]
[1725041209571,4.4989765,2471.3,2471.2,0.40468]
[1725041210370,0.00607607,2471.4,2471.0,3.21387607]
[1725041210569,0.00607607,2471.4,2471.2,0.40466]
[1725041210965,0.00607607,2471.4,2471.3,0.40466]
[1725041211975,0.00607607,2471.4,2471.2,0.40467]
[1725041212483,0.00607607,2471.4,2471.0,3.21387607]
[1725041212484,0.00607607,2471.4,2471.3,0.40466]
[1725041212980,0.00607607,2471.4,2471.3,3.61246]
[1725041214381,0.00607607,2471.4,2471.3,15.68218]
[1725041216169,0.4045,2472.3,2472.1,0.40451]
[1725041216686,4.41028294,2472.2,2472.1,3.61233]
[1725041216875,0.7715,2472.4,2472.1,3.2078]
[1725041217072,0.7715,2472.4,2472.3,0.4045]
[1725041217277,0.20308863,2472.5,2472.4,0.40448]
[1725041217582,0.00607607,2472.6,2472.4,0.40448]
[1725041217975,4.32530266,2472.5,2472.4,0.40448]
[1725041218370,8.37010266,2472.5,2472.3,0.00607607]
[1725041218580,4.44928,2472.4,2472.3,0.00607607]
[1725041218987,8.90208065,2472.4,2472.3,0.00607607]
[1725041219191,9.26968065,2472.4,2472.3,0.00607607]
[1725041220582,9.26968065,2472.4,2471.9,0.40456]
[1725041220583,0.40452,2472.2,2471.9,0.40456]
[1725041220885,4.39982832,2472.1,2471.9,0.40455]
[1725041221280,4.39982832,2472.1,2471.8,3.61237]
[1725041221281,4.45013,2472.1,2471.8,3.61237]
[1725041221473,4.95455613,2472.1,2471.8,3.61237]
[1725041221883,4.0456,2472.1,2471.8,3.2078]
[1725041222086,1.41597,2471.9,2471.8,3.2078]
[1725041222286,1.41597,2471.9,2471.7,0.00607607]
[1725041222287,0.40458,2471.8,2471.7,0.00607607]
[1725041222476,4.83488,2471.8,2471.7,0.00607607]
[1725041222795,4.9465179,2471.8,2471.7,0.41067607]
[1725041223085,0.9009179,2471.8,2471.7,0.41067607]
[1725041225085,0.9009179,2471.8,2471.7,3.61847607]
[1725041225279,0.9009179,2471.8,2471.7,8.67557607]
[1725041225280,0.5162179,2471.8,2471.7,8.67557607]
[1725041225585,3.51947255,2472.2,2472.1,0.40453]
[1725041226190,3.51947255,2472.2,2472.1,1.41586]
[1725041226891,3.51947255,2472.2,2472.1,4.44933]
[1725041227182,0.7748,2472.4,2472.3,0.4045]
[1725041227493,5.44377473,2472.4,2472.3,0.4045]
[1725041227990,5.05817473,2472.4,2472.3,0.4045]
[1725041228189,0.3892,2472.4,2472.3,0.4045]
[1725041228491,0.4045,2472.3,2472.2,0.4045]
[1725041228678,4.83881,2472.3,2472.1,0.40452]
[1725041228879,5.32705027,2472.3,2471.9,3.2078]
[1725041229079,4.92254027,2472.3,2472.2,0.40451]
[1725041229280,5.32704027,2472.3,2472.2,0.40451]
[1725041229489,9.37184027,2472.3,2472.2,0.40451]
[1725041229785,8.96734027,2472.3,2472.2,0.40451]
[1725041230789,15.97861027,2472.3,2471.9,0.40455]
[1725041230987,15.97861027,2472.3,2471.7,0.00607607]
[1725041230988,9.97861027,2472.3,2471.7,0.00607607]
[1725041231188,0.40455,2472.0,2471.8,0.40457]
[1725041231392,0.40454,2472.1,2471.9,0.40456]
[1725041231688,4.28342012,2472.0,2471.9,0.40456]
[1725041231890,4.68797012,2472.0,2471.9,0.40456]
[1725041232082,8.73357012,2472.0,2471.9,0.40456]
[1725041232283,8.32902012,2472.0,2471.9,0.40456]
[1725041232479,4.28342012,2472.0,2471.9,0.40456]
[1725041232678,8.32902012,2472.0,2471.9,0.40456]
[1725041232883,4.0456,2472.0,2471.9,0.40456]
[1725041233082,8.72624731,2472.0,2471.9,0.40456]
[1725041234192,4.68064731,2472.0,2471.9,2.42738]
[1725041234493,41.1892,2472.4,2471.9,2.42738]
[1725041234494,0.3892,2472.4,2472.3,0.4045]
[1725041234887,4.94033068,2472.4,2472.3,0.4045]
[1725041235792,5.34481068,2472.4,2472.3,0.4045]
[1725041235991,4.94033068,2472.4,2472.3,0.4045]
[1725041236386,0.4045,2472.3,2472.2,3.61231]
[1725041236582,0.40453,2472.2,2472.0,0.40453]
[1725041236787,5.30523129,2472.3,2471.7,0.00607607]
[1725041237100,0.40458,2471.8,2471.7,0.00607607]
[1725041237396,4.64063071,2471.8,2471.7,0.41065607]
[1725041237696,4.23605071,2471.8,2471.7,0.41065607]
[1725041237896,4.64063071,2471.8,2471.7,0.00607607]
[1725041238092,0.77418,2471.8,2471.7,0.00607607]
[1725041238293,5.47062213,2471.8,2471.7,0.00607607]
[1725041238991,5.47062213,2471.8,2471.7,0.41067607]
[1725041239299,6.48207213,2471.8,2471.7,0.00607607]
[1725041239488,9.51622213,2471.8,2471.7,0.00607607]
[1725041240195,10.52767213,2471.8,2471.7,0.00607607]
[1725041240992,9.51622213,2471.8,2471.7,0.00607607]
[1725041242785,9.11164213,2471.8,2471.7,0.00607607]
[1725041242985,5.47062213,2471.8,2471.7,0.41067607]
[1725041243190,5.47062213,2471.8,2471.7,0.00607607]
[1725041243697,9.51622213,2471.8,2471.7,0.00607607]
[1725041244298,10.52767213,2471.8,2471.7,0.00607607]
[1725041244695,0.40464,2471.4,2471.3,3.61245]
[1725041244897,0.40463,2471.5,2471.4,0.40463]
[1725041245301,4.632909,2471.5,2471.4,0.40463]
[1725041247297,0.40469,2471.2,2470.9,4.66]
[1725041247503,0.4047,2471.1,2470.8,3.2078]
[1725041247697,5.05349375,2471.1,2471.0,0.40471]
[1725041248000,4.64879375,2471.1,2471.0,0.40471]
[1725041248199,5.05348375,2471.1,2471.0,0.40471]
[1725041248809,4.64879375,2471.1,2471.0,0.40471]
[1725041249207,5.05348375,2471.1,2471.0,0.40471]
[1725041249504,5.05348375,2471.1,2471.0,1.4082928]
[1725041249699,5.05348375,2471.1,2471.0,0.81245484]
[1725041249700,4.64879375,2471.1,2471.0,0.81245484]
[1725041250001,5.05348375,2471.1,2471.0,1.40828696]
[1725041250201,5.05348375,2471.1,2471.0,0.81245484]